Workbook

Sheet OP2021
A1: OPERAÇÕES COMUNS | I1: OPERAÇÕES DAY TRADE
A2: MÊS | B2: TOTAL | C2: PIBB11 | D2: PMAM3 | E2: XFIX11 | F2: IR PG | G2: RES NEG MÊS ANT | I2: MÊS | J2: PIBB11 | K2: ÍNDICE | L2: IR RET WIN | M2: PREJ WIN | N2: DÓLAR | O2: IR RET WDO | P2: PREJ WDO | Q2: RES NEG MÊS ANT
A3: 1 | B3: =SUM(Tabela13[[#This Row],[PIBB11]:[XFIX11]]) -> -1456.765 | C3: =30*204.1475-207.67*30-5.95-4.12-0.55-0.66-(30*207.95-30*202.49) -> -280.755 | D3: =-39194.16+38038-2.49-2.74-10.77 -> -1172.16 | E3: =-207.35+51.5+20.6+103+10.3+20.6-2.49-0.01 -> -3.85 | F3: =1.91+0.3 -> 2.21 | G3: 41981.96 | I3: 1 | J3: =-5+204.1475*30-203.41*30 -> 17.125 | N3: -6249.88 | O3: 29.78 | P3: =Tabela135[[#This Row],[DÓLAR]]-Tabela135[[#This Row],[IR RET WDO]] -> -6279.66 | Q3: 109937.13
A4: 2 | B4: =SUM(Tabela13[[#This Row],[PIBB11]:[XFIX11]]) -> 0 | I4: 2 | N4: -835.46 | O4: 17.62 | P4: =Tabela135[[#This Row],[DÓLAR]]-Tabela135[[#This Row],[IR RET WDO]] -> -853.08
A5: 3 | B5: =SUM(Tabela13[[#This Row],[PIBB11]:[XFIX11]]) -> 0 | I5: 3 | N5: 8365.8 | O5: 95.12 | P5: =Tabela135[[#This Row],[DÓLAR]]-Tabela135[[#This Row],[IR RET WDO]] -> 8270.68
A6: 4 | B6: =SUM(Tabela13[[#This Row],[PIBB11]:[XFIX11]]) -> 0 | I6: 4 | K6: 355.5 | L6: =2.54+1.01 -> 3.55 | M6: =Tabela135[[#This Row],[ÍNDICE]]-Tabela135[[#This Row],[IR RET WIN]] -> 351.95 | N6: 127.5 | O6: 1.27 | P6: =Tabela135[[#This Row],[DÓLAR]]-Tabela135[[#This Row],[IR RET WDO]] -> 126.23
A7: 5 | B7: =SUM(Tabela13[[#This Row],[PIBB11]:[XFIX11]]) -> 737.99 | C7: =-37.2+(13*213.31)-(13*207.08)+(60*217.64)-(60*206.07) -> 737.99 | I7: 5 | K7: -3545.9 | L7: 4.9 | M7: =Tabela135[[#This Row],[ÍNDICE]]-Tabela135[[#This Row],[IR RET WIN]] -> -3550.8 | N7: -11289.8 | O7: 46.68 | P7: =Tabela135[[#This Row],[DÓLAR]]-Tabela135[[#This Row],[IR RET WDO]] -> -11336.48
A8: 6 | B8: =SUM(Tabela13[[#This Row],[PIBB11]:[XFIX11]]) -> 2629.605 | C8: =3110.59-C7-C3-23.75 -> 2629.605 | I8: 6 | N8: =184.7-2744.6-743.3+691.42-8.5-12.4+342.05+197.13 -> -2093.5 | O8: 1.84 | P8: =Tabela135[[#This Row],[DÓLAR]]-Tabela135[[#This Row],[IR RET WDO]] -> -2095.34
A9: 7 | B9: =SUM(Tabela13[[#This Row],[PIBB11]:[XFIX11]]) -> 0 | I9: 7
A10: 8 | B10: =SUM(Tabela13[[#This Row],[PIBB11]:[XFIX11]]) -> 0 | I10: 8
A11: 9 | B11: =SUM(Tabela13[[#This Row],[PIBB11]:[XFIX11]]) -> 0 | I11: 9
A12: 10 | B12: =SUM(Tabela13[[#This Row],[PIBB11]:[XFIX11]]) -> 0 | I12: 10
A13: 11 | B13: =SUM(Tabela13[[#This Row],[PIBB11]:[XFIX11]]) -> 0 | I13: 11
A14: 12 | B14: =SUM(Tabela13[[#This Row],[PIBB11]:[XFIX11]]) -> 0 | I14: 12
B15: =SUM(Tabela13[TOTAL]) -> 1910.83 | C15: =SUM(Tabela13[PIBB11]) -> 3086.84 | D15: =SUM(Tabela13[PMAM3]) -> -1172.16 | E15: =SUM(Tabela13[XFIX11]) -> -3.85 | F15: =SUM(Tabela13[IR PG]) -> 2.21 | G15: =G3-SUM(Tabela13[[PIBB11]:[XFIX11]]) -> 40071.13 | J15: =SUM(Tabela135[PIBB11]) -> 17.125 | K15: =SUM(Tabela135[ÍNDICE]) -> -3190.4 | L15: =SUM(Tabela135[IR RET WIN]) -> 8.45 | M15: =SUM(Tabela135[PREJ WIN]) -> -3198.85 | N15: =SUM(N2:N14) -> -11975.34 | O15: =SUM(O3:O14) -> 192.31 | P15: =SUM(Tabela135[PREJ WDO]) -> -12167.65 | Q15: =Q3-Tabela135[[#Totals],[PREJ WDO]]-Tabela135[[#Totals],[PREJ WIN]]-Tabela135[[#Totals],[PIBB11]] -> 125286.505

Sheet RICO
A1: DATA | B1: QUANTIDADE | C1: UNITÁRIO | D1: PAGO | E1: TOTAL PAGO | F1: CORRETORA | J1: QUANTIDADE | K1: PAGO | L1: PREÇO MÉDIO | M1: FECHAMENTO | N1: RESULTADO
A2: 2021-03-17 | B2: 5 | C2: =D2/B2 -> 199.056 | D2: 995.28 | E2: =Tabela5[[#This Row],[PAGO]] -> 995.28 | F2: RICO | J2: =SUM(B:B) -> 62 | K2: =SUM(D:D) -> 12566.97 | L2: =K2/J2 -> 202.6930645 | M2: =INDEX(DIAS!D:D,COUNTA(DIAS!D:D),1) -> 225.05 | N2: =Tabela6[FECHAMENTO]*Tabela6[QUANTIDADE]-Tabela6[PAGO] -> 1386.13
A3: 2021-03-18 | B3: 4 | C3: =D3/B3 -> 198.0175 | D3: 792.07 | E3: =Tabela5[[#This Row],[PAGO]]+E2 -> 1787.35 | F3: RICO
A4: 2021-03-19 | B4: 19 | C4: 199.4842105 | D4: 3790.2 | E4: =Tabela5[[#This Row],[PAGO]]+E3 -> 5577.55 | F4: RICO | J4: MENOR | K4: MAIOR | L4: MÉDIA
A5: 2021-03-22 | B5: 2 | C5: 197.28 | D5: 394.56 | E5: =Tabela5[[#This Row],[PAGO]]+E4 -> 5972.11 | F5: RICO | J5: =MIN(Tabela5[UNITÁRIO]) -> 192.02 | K5: =MAX(Tabela5[UNITÁRIO]) -> 223.56 | L5: =SUM(Tabela3[[MENOR]:[MAIOR]])/2 -> 207.79
A6: 2021-03-23 | B6: 4 | C6: 196.77 | D6: 787.08 | E6: =Tabela5[[#This Row],[PAGO]]+E5 -> 6759.19 | F6: RICO
A7: 2021-03-24 | B7: 1 | C7: 192.02 | D7: 192.02 | E7: =Tabela5[[#This Row],[PAGO]]+E6 -> 6951.21 | F7: RICO
A8: 2021-03-26 | B8: 1 | C8: 197.22 | D8: 197.22 | E8: =Tabela5[[#This Row],[PAGO]]+E7 -> 7148.43 | F8: RICO
A9: 2021-03-30 | B9: 1 | C9: 199.12 | D9: 199.12 | E9: =Tabela5[[#This Row],[PAGO]]+E8 -> 7347.55 | F9: RICO
A10: 2021-04-01 | B10: 7 | C10: 199.5485714 | D10: 1396.84 | E10: =Tabela5[[#This Row],[PAGO]]+E9 -> 8744.39 | F10: RICO
A11: 2021-04-12 | B11: 3 | C11: 204.92 | D11: 614.76 | E11: =Tabela5[[#This Row],[PAGO]]+E10 -> 9359.15 | F11: RICO
A12: 2021-04-30 | B12: 1 | C12: 206.77 | D12: 206.77 | E12: =Tabela5[[#This Row],[PAGO]]+E11 -> 9565.92 | F12: RICO
A13: 2021-05-03 | B13: 1 | C13: 210.87 | D13: 210.87 | E13: =Tabela5[[#This Row],[PAGO]]+E12 -> 9776.79 | F13: RICO
A14: 2021-05-05 | B14: 1 | C14: 208.2 | D14: 208.2 | E14: =Tabela5[[#This Row],[PAGO]]+E13 -> 9984.99 | F14: RICO
A15: 2021-05-10 | B15: 2 | C15: 214.06 | D15: 428.12 | E15: =Tabela5[[#This Row],[PAGO]]+E14 -> 10413.11 | F15: RICO
A16: 2021-05-11 | B16: 4 | C16: 213.8425 | D16: 855.37 | E16: =Tabela5[[#This Row],[PAGO]]+E15 -> 11268.48 | F16: RICO
A17: 2021-05-19 | B17: 1 | C17: 213.65 | D17: 213.65 | E17: =Tabela5[[#This Row],[PAGO]]+E16 -> 11482.13 | F17: RICO
A18: 2021-05-25 | B18: 3 | C18: 212.5733333 | D18: 637.72 | E18: =Tabela5[[#This Row],[PAGO]]+E17 -> 12119.85 | F18: RICO
A19: 2021-06-07 | B19: 2 | C19: 223.56 | D19: =223.56*2 -> 447.12 | E19: =E18+Tabela5[[#This Row],[PAGO]] -> 12566.97 | F19: RICO

Sheet DIAS
A1: DATA | B1: QTD | C1: QTD T | D1: FECHAM | E1: PREÇO MÉDIO | F1: PAGO | G1: ATUAL | H1: RESULT | I1: % | J1: COTAS | K1: VENDA
A2: 2021-03-17 | B2: 5 | C2: 5 | D2: 200.78 | E2: =F2/C2 -> 199.056 | F2: =INDEX(Tabela5[#All],MATCH(Tabela1[[#This Row],[DATA]],RICO!A:A,1),5) -> 995.28 | G2: =Tabela1[[#This Row],[QTD T]]*Tabela1[[#This Row],[FECHAM]] -> 1003.9 | H2: =Tabela1[ATUAL]-Tabela1[PAGO] -> 8.62 | I2: =H2/G2 -> 0.008586512601 | J2: =(TOTAL/Tabela1[[#This Row],[FECHAM]])-Tabela1[[#This Row],[QTD T]] -> 885.5651683 | K2: =TOTAL/Tabela1[[#This Row],[QTD T]] -> 35761.5349
A3: 2021-03-18 | B3: 4 | C3: 9 | D3: 197.84 | E3: 198.5944444 | F3: =INDEX(Tabela5[#All],MATCH(Tabela1[[#This Row],[DATA]],RICO!A:A,1),5) -> 1787.35 | G3: =Tabela1[[#This Row],[QTD T]]*Tabela1[[#This Row],[FECHAM]] -> 1780.56 | H3: =Tabela1[ATUAL]-Tabela1[PAGO] -> -6.79 | I3: -0.003813407018 | J3: =(TOTAL/Tabela1[[#This Row],[FECHAM]])-Tabela1[[#This Row],[QTD T]] -> 894.7994061 | K3: =TOTAL/Tabela1[[#This Row],[QTD T]] -> 19867.51939
A4: 2021-03-19 | B4: 19 | C4: 28 | D4: 199.65 | E4: 199.1982143 | F4: =INDEX(Tabela5[#All],MATCH(Tabela1[[#This Row],[DATA]],RICO!A:A,1),5) -> 5577.55 | G4: =Tabela1[[#This Row],[QTD T]]*Tabela1[[#This Row],[FECHAM]] -> 5590.2 | H4: =Tabela1[ATUAL]-Tabela1[PAGO] -> 12.65 | I4: 0.002262888627 | J4: =(TOTAL/Tabela1[[#This Row],[FECHAM]])-Tabela1[[#This Row],[QTD T]] -> 867.6056824 | K4: =TOTAL/Tabela1[[#This Row],[QTD T]] -> 6385.988375
A5: 2021-03-22 | B5: 2 | C5: 30 | D5: 197.3 | E5: 199.0703333 | F5: =INDEX(Tabela5[#All],MATCH(Tabela1[[#This Row],[DATA]],RICO!A:A,1),5) -> 5972.11 | G5: =Tabela1[[#This Row],[QTD T]]*Tabela1[[#This Row],[FECHAM]] -> 5919 | H5: =Tabela1[ATUAL]-Tabela1[PAGO] -> -53.11 | I5: -0.008972799459 | J5: =(TOTAL/Tabela1[[#This Row],[FECHAM]])-Tabela1[[#This Row],[QTD T]] -> 876.2730588 | K5: =TOTAL/Tabela1[[#This Row],[QTD T]] -> 5960.255817
A6: 2021-03-23 | B6: 4 | C6: 34 | D6: 194 | E6: 198.7997059 | F6: =INDEX(Tabela5[#All],MATCH(Tabela1[[#This Row],[DATA]],RICO!A:A,1),5) -> 6759.19 | G6: =Tabela1[[#This Row],[QTD T]]*Tabela1[[#This Row],[FECHAM]] -> 6596 | H6: =Tabela1[ATUAL]-Tabela1[PAGO] -> -163.19 | I6: -0.02474075197 | J6: =(TOTAL/Tabela1[[#This Row],[FECHAM]])-Tabela1[[#This Row],[QTD T]] -> 887.6890438 | K6: =TOTAL/Tabela1[[#This Row],[QTD T]] -> 5259.04925
A7: 2021-03-24 | B7: 1 | C7: 35 | D7: 192.85 | E7: 198.606 | F7: =INDEX(Tabela5[#All],MATCH(Tabela1[[#This Row],[DATA]],RICO!A:A,1),5) -> 6951.21 | G7: =Tabela1[[#This Row],[QTD T]]*Tabela1[[#This Row],[FECHAM]] -> 6749.75 | H7: =Tabela1[ATUAL]-Tabela1[PAGO] -> -201.46 | I7: -0.02984703137 | J7: =(TOTAL/Tabela1[[#This Row],[FECHAM]])-Tabela1[[#This Row],[QTD T]] -> 892.185245 | K7: =TOTAL/Tabela1[[#This Row],[QTD T]] -> 5108.7907
A8: 2021-03-25 | B8: 0 | C8: 35 | D8: 195 | E8: 198.606 | F8: =INDEX(Tabela5[#All],MATCH(Tabela1[[#This Row],[DATA]],RICO!A:A,1),5) -> 6951.21 | G8: =Tabela1[[#This Row],[QTD T]]*Tabela1[[#This Row],[FECHAM]] -> 6825 | H8: =Tabela1[ATUAL]-Tabela1[PAGO] -> -126.21 | I8: -0.01849230769 | J8: =(TOTAL/Tabela1[[#This Row],[FECHAM]])-Tabela1[[#This Row],[QTD T]] -> 881.9624333 | K8: =TOTAL/Tabela1[[#This Row],[QTD T]] -> 5108.7907
A9: 2021-03-26 | B9: 1 | C9: 36 | D9: 197.45 | E9: 198.5675 | F9: =INDEX(Tabela5[#All],MATCH(Tabela1[[#This Row],[DATA]],RICO!A:A,1),5) -> 7148.43 | G9: =Tabela1[[#This Row],[QTD T]]*Tabela1[[#This Row],[FECHAM]] -> 7108.2 | H9: =Tabela1[ATUAL]-Tabela1[PAGO] -> -40.23 | I9: -0.005659660674 | J9: =(TOTAL/Tabela1[[#This Row],[FECHAM]])-Tabela1[[#This Row],[QTD T]] -> 869.5845758 | K9: =TOTAL/Tabela1[[#This Row],[QTD T]] -> 4966.879847
A10: 2021-03-29 | B10: 0 | C10: 36 | D10: 199.45 | E10: 198.5675 | F10: =INDEX(Tabela5[#All],MATCH(Tabela1[[#This Row],[DATA]],RICO!A:A,1),5) -> 7148.43 | G10: =Tabela1[[#This Row],[QTD T]]*Tabela1[[#This Row],[FECHAM]] -> 7180.2 | H10: =Tabela1[ATUAL]-Tabela1[PAGO] -> 31.77 | I10: 0.004424667837 | J10: =(TOTAL/Tabela1[[#This Row],[FECHAM]])-Tabela1[[#This Row],[QTD T]] -> 860.5037578 | K10: =TOTAL/Tabela1[[#This Row],[QTD T]] -> 4966.879847
A11: 2021-03-30 | B11: 1 | C11: 37 | D11: 200.77 | E11: 198.5824324 | F11: =INDEX(Tabela5[#All],MATCH(Tabela1[[#This Row],[DATA]],RICO!A:A,1),5) -> 7347.55 | G11: =Tabela1[[#This Row],[QTD T]]*Tabela1[[#This Row],[FECHAM]] -> 7428.49 | H11: =Tabela1[ATUAL]-Tabela1[PAGO] -> 80.94 | I11: 0.01089588867 | J11: =(TOTAL/Tabela1[[#This Row],[FECHAM]])-Tabela1[[#This Row],[QTD T]] -> 853.6095258 | K11: =TOTAL/Tabela1[[#This Row],[QTD T]] -> 4832.639851
A12: 2021-03-31 | B12: 0 | C12: 37 | D12: 201 | E12: 198.5824324 | F12: =INDEX(Tabela5[#All],MATCH(Tabela1[[#This Row],[DATA]],RICO!A:A,1),5) -> 7347.55 | G12: =Tabela1[[#This Row],[QTD T]]*Tabela1[[#This Row],[FECHAM]] -> 7437 | H12: =Tabela1[ATUAL]-Tabela1[PAGO] -> 89.45 | I12: 0.01202769934 | J12: =(TOTAL/Tabela1[[#This Row],[FECHAM]])-Tabela1[[#This Row],[QTD T]] -> 852.5904204 | K12: =TOTAL/Tabela1[[#This Row],[QTD T]] -> 4832.639851
A13: 2021-04-01 | B13: 7 | C13: 44 | D13: 199.07 | E13: 198.7361364 | F13: =INDEX(Tabela5[#All],MATCH(Tabela1[[#This Row],[DATA]],RICO!A:A,1),5) -> 8744.39 | G13: =Tabela1[[#This Row],[QTD T]]*Tabela1[[#This Row],[FECHAM]] -> 8759.08 | H13: =Tabela1[ATUAL]-Tabela1[PAGO] -> 14.69 | I13: 0.001677116775 | J13: =(TOTAL/Tabela1[[#This Row],[FECHAM]])-Tabela1[[#This Row],[QTD T]] -> 854.2150726 | K13: =TOTAL/Tabela1[[#This Row],[QTD T]] -> 4063.810784
A14: 2021-04-05 | B14: 0 | C14: 44 | D14: 203.45 | E14: 198.7361364 | F14: =INDEX(Tabela5[#All],MATCH(Tabela1[[#This Row],[DATA]],RICO!A:A,1),5) -> 8744.39 | G14: =Tabela1[[#This Row],[QTD T]]*Tabela1[[#This Row],[FECHAM]] -> 8951.8 | H14: =Tabela1[ATUAL]-Tabela1[PAGO] -> 207.41 | I14: 0.02316964186 | J14: =(TOTAL/Tabela1[[#This Row],[FECHAM]])-Tabela1[[#This Row],[QTD T]] -> 834.8777316 | K14: =TOTAL/Tabela1[[#This Row],[QTD T]] -> 4063.810784
A15: 2021-04-06 | B15: 0 | C15: 44 | D15: 203.08 | E15: 198.7361364 | F15: =INDEX(Tabela5[#All],MATCH(Tabela1[[#This Row],[DATA]],RICO!A:A,1),5) -> 8744.39 | G15: =Tabela1[[#This Row],[QTD T]]*Tabela1[[#This Row],[FECHAM]] -> 8935.52 | H15: =Tabela1[ATUAL]-Tabela1[PAGO] -> 191.13 | I15: 0.02138991351 | J15: =(TOTAL/Tabela1[[#This Row],[FECHAM]])-Tabela1[[#This Row],[QTD T]] -> 836.478996 | K15: =TOTAL/Tabela1[[#This Row],[QTD T]] -> 4063.810784
A16: 2021-04-07 | B16: 0 | C16: 44 | D16: 203.95 | E16: 198.7361364 | F16: =INDEX(Tabela5[#All],MATCH(Tabela1[[#This Row],[DATA]],RICO!A:A,1),5) -> 8744.39 | G16: =Tabela1[[#This Row],[QTD T]]*Tabela1[[#This Row],[FECHAM]] -> 8973.8 | H16: =Tabela1[ATUAL]-Tabela1[PAGO] -> 229.41 | I16: 0.02556442087 | J16: =(TOTAL/Tabela1[[#This Row],[FECHAM]])-Tabela1[[#This Row],[QTD T]] -> 832.7230914 | K16: =TOTAL/Tabela1[[#This Row],[QTD T]] -> 4063.810784
A17: 2021-04-08 | B17: 0 | C17: 44 | D17: 204.82 | E17: 198.7361364 | F17: =INDEX(Tabela5[#All],MATCH(Tabela1[[#This Row],[DATA]],RICO!A:A,1),5) -> 8744.39 | G17: =Tabela1[[#This Row],[QTD T]]*Tabela1[[#This Row],[FECHAM]] -> 9012.08 | H17: =Tabela1[ATUAL]-Tabela1[PAGO] -> 267.69 | I17: =H17/G17 -> 0.02970346468 | J17: =(TOTAL/Tabela1[[#This Row],[FECHAM]])-Tabela1[[#This Row],[QTD T]] -> 828.9990943 | K17: =TOTAL/Tabela1[[#This Row],[QTD T]] -> 4063.810784
A18: 2021-04-09 | B18: 0 | C18: 44 | D18: 203.5 | E18: 198.7361364 | F18: =INDEX(Tabela5[#All],MATCH(Tabela1[[#This Row],[DATA]],RICO!A:A,1),5) -> 8744.39 | G18: =Tabela1[[#This Row],[QTD T]]*Tabela1[[#This Row],[FECHAM]] -> 8954 | H18: =Tabela1[ATUAL]-Tabela1[PAGO] -> 209.61 | I18: 0.02340964932 | J18: =(TOTAL/Tabela1[[#This Row],[FECHAM]])-Tabela1[[#This Row],[QTD T]] -> 834.6617912 | K18: =TOTAL/Tabela1[[#This Row],[QTD T]] -> 4063.810784
A19: 2021-04-12 | B19: 3 | C19: 47 | D19: 205.6 | E19: 199.1308511 | F19: =INDEX(Tabela5[#All],MATCH(Tabela1[[#This Row],[DATA]],RICO!A:A,1),5) -> 9359.15 | G19: =Tabela1[[#This Row],[QTD T]]*Tabela1[[#This Row],[FECHAM]] -> 9663.2 | H19: =Tabela1[ATUAL]-Tabela1[PAGO] -> 304.05 | I19: 0.03146473218 | J19: =(TOTAL/Tabela1[[#This Row],[FECHAM]])-Tabela1[[#This Row],[QTD T]] -> 822.6871328 | K19: =TOTAL/Tabela1[[#This Row],[QTD T]] -> 3804.418606
A20: 2021-04-13 | B20: 0 | C20: 47 | D20: 206.15 | E20: 199.1308511 | F20: =INDEX(Tabela5[#All],MATCH(Tabela1[[#This Row],[DATA]],RICO!A:A,1),5) -> 9359.15 | G20: =Tabela1[[#This Row],[QTD T]]*Tabela1[[#This Row],[FECHAM]] -> 9689.05 | H20: =Tabela1[ATUAL]-Tabela1[PAGO] -> 329.9 | I20: 0.03404874575 | J20: =(TOTAL/Tabela1[[#This Row],[FECHAM]])-Tabela1[[#This Row],[QTD T]] -> 820.3668421 | K20: =TOTAL/Tabela1[[#This Row],[QTD T]] -> 3804.418606
A21: 2021-04-14 | B21: 0 | C21: 47 | D21: 208.7 | E21: 199.1308511 | F21: =INDEX(Tabela5[#All],MATCH(Tabela1[[#This Row],[DATA]],RICO!A:A,1),5) -> 9359.15 | G21: =Tabela1[[#This Row],[QTD T]]*Tabela1[[#This Row],[FECHAM]] -> 9808.9 | H21: =Tabela1[ATUAL]-Tabela1[PAGO] -> 449.75 | I21: 0.04585121675 | J21: =(TOTAL/Tabela1[[#This Row],[FECHAM]])-Tabela1[[#This Row],[QTD T]] -> 809.7689243 | K21: =TOTAL/Tabela1[[#This Row],[QTD T]] -> 3804.418606
A22: 2021-04-15 | B22: 0 | C22: 47 | D22: 208.42 | E22: =F22/C22 -> 199.1308511 | F22: =INDEX(Tabela5[#All],MATCH(Tabela1[[#This Row],[DATA]],RICO!A:A,1),5) -> 9359.15 | G22: =Tabela1[[#This Row],[QTD T]]*Tabela1[[#This Row],[FECHAM]] -> 9795.74 | H22: =Tabela1[ATUAL]-Tabela1[PAGO] -> 436.59 | I22: 0.04456937403 | J22: =(TOTAL/Tabela1[[#This Row],[FECHAM]])-Tabela1[[#This Row],[QTD T]] -> 810.9199429 | K22: =TOTAL/Tabela1[[#This Row],[QTD T]] -> 3804.418606
A23: 2021-04-16 | B23: 0 | C23: 47 | D23: 210.05 | E23: 199.1308511 | F23: =INDEX(Tabela5[#All],MATCH(Tabela1[[#This Row],[DATA]],RICO!A:A,1),5) -> 9359.15 | G23: =Tabela1[[#This Row],[QTD T]]*Tabela1[[#This Row],[FECHAM]] -> 9872.35 | H23: =Tabela1[ATUAL]-Tabela1[PAGO] -> 513.2 | I23: 0.05198357027 | J23: =(TOTAL/Tabela1[[#This Row],[FECHAM]])-Tabela1[[#This Row],[QTD T]] -> 804.2624351 | K23: =TOTAL/Tabela1[[#This Row],[QTD T]] -> 3804.418606
A24: 2021-04-19 | B24: 0 | C24: 47 | D24: 209.74 | E24: 199.1308511 | F24: =INDEX(Tabela5[#All],MATCH(Tabela1[[#This Row],[DATA]],RICO!A:A,1),5) -> 9359.15 | G24: =Tabela1[[#This Row],[QTD T]]*Tabela1[[#This Row],[FECHAM]] -> 9857.78 | H24: =Tabela1[ATUAL]-Tabela1[PAGO] -> 498.63 | I24: 0.05058238265 | J24: =(TOTAL/Tabela1[[#This Row],[FECHAM]])-Tabela1[[#This Row],[QTD T]] -> 805.5206184 | K24: =TOTAL/Tabela1[[#This Row],[QTD T]] -> 3804.418606
A25: 2021-04-20 | B25: 0 | C25: 47 | D25: 207.91 | E25: 199.1308511 | F25: =INDEX(Tabela5[#All],MATCH(Tabela1[[#This Row],[DATA]],RICO!A:A,1),5) -> 9359.15 | G25: =Tabela1[[#This Row],[QTD T]]*Tabela1[[#This Row],[FECHAM]] -> 9771.77 | H25: =Tabela1[ATUAL]-Tabela1[PAGO] -> 412.62 | I25: 0.04222571755 | J25: =(TOTAL/Tabela1[[#This Row],[FECHAM]])-Tabela1[[#This Row],[QTD T]] -> 813.0244072 | K25: =TOTAL/Tabela1[[#This Row],[QTD T]] -> 3804.418606
A26: 2021-04-22 | B26: 0 | C26: 47 | D26: 206.92 | E26: 199.1308511 | F26: =INDEX(Tabela5[#All],MATCH(Tabela1[[#This Row],[DATA]],RICO!A:A,1),5) -> 9359.15 | G26: =Tabela1[[#This Row],[QTD T]]*Tabela1[[#This Row],[FECHAM]] -> 9725.24 | H26: =Tabela1[ATUAL]-Tabela1[PAGO] -> 366.09 | I26: 0.03764328695 | J26: =(TOTAL/Tabela1[[#This Row],[FECHAM]])-Tabela1[[#This Row],[QTD T]] -> 817.1391576 | K26: =TOTAL/Tabela1[[#This Row],[QTD T]] -> 3804.418606
A27: 2021-04-23 | B27: 0 | C27: 47 | D27: 209.02 | E27: 199.1308511 | F27: =INDEX(Tabela5[#All],MATCH(Tabela1[[#This Row],[DATA]],RICO!A:A,1),5) -> 9359.15 | G27: =Tabela1[[#This Row],[QTD T]]*Tabela1[[#This Row],[FECHAM]] -> 9823.94 | H27: =Tabela1[ATUAL]-Tabela1[PAGO] -> 464.79 | I27: =H27/G27 -> 0.04731197463 | J27: =(TOTAL/Tabela1[[#This Row],[FECHAM]])-Tabela1[[#This Row],[QTD T]] -> 808.4572505 | K27: =TOTAL/Tabela1[[#This Row],[QTD T]] -> 3804.418606
A28: 2021-04-26 | B28: 0 | C28: 47 | D28: 209.68 | E28: =F28/C28 -> 199.1308511 | F28: =INDEX(Tabela5[#All],MATCH(Tabela1[[#This Row],[DATA]],RICO!A:A,1),5) -> 9359.15 | G28: =Tabela1[[#This Row],[QTD T]]*Tabela1[[#This Row],[FECHAM]] -> 9854.96 | H28: =Tabela1[ATUAL]-Tabela1[PAGO] -> 495.81 | I28: 0.05031070649 | J28: =(TOTAL/Tabela1[[#This Row],[FECHAM]])-Tabela1[[#This Row],[QTD T]] -> 805.7645674 | K28: =TOTAL/Tabela1[[#This Row],[QTD T]] -> 3804.418606
A29: 2021-04-27 | B29: 0 | C29: 47 | D29: 207.9 | E29: 199.1308511 | F29: =INDEX(Tabela5[#All],MATCH(Tabela1[[#This Row],[DATA]],RICO!A:A,1),5) -> 9359.15 | G29: =Tabela1[[#This Row],[QTD T]]*Tabela1[[#This Row],[FECHAM]] -> 9771.3 | H29: =Tabela1[ATUAL]-Tabela1[PAGO] -> 412.15 | I29: 0.04217964856 | J29: =(TOTAL/Tabela1[[#This Row],[FECHAM]])-Tabela1[[#This Row],[QTD T]] -> 813.0657744 | K29: =TOTAL/Tabela1[[#This Row],[QTD T]] -> 3804.418606
A30: 2021-04-28 | B30: 0 | C30: 47 | D30: 210.92 | E30: 199.1308511 | F30: =INDEX(Tabela5[#All],MATCH(Tabela1[[#This Row],[DATA]],RICO!A:A,1),5) -> 9359.15 | G30: =Tabela1[[#This Row],[QTD T]]*Tabela1[[#This Row],[FECHAM]] -> 9913.24 | H30: =Tabela1[ATUAL]-Tabela1[PAGO] -> 554.09 | I30: 0.05589393579 | J30: =(TOTAL/Tabela1[[#This Row],[FECHAM]])-Tabela1[[#This Row],[QTD T]] -> 800.7511592 | K30: =TOTAL/Tabela1[[#This Row],[QTD T]] -> 3804.418606
A31: 2021-04-29 | B31: 0 | C31: 47 | D31: 209.18 | E31: 199.1308511 | F31: =INDEX(Tabela5[#All],MATCH(Tabela1[[#This Row],[DATA]],RICO!A:A,1),5) -> 9359.15 | G31: =Tabela1[[#This Row],[QTD T]]*Tabela1[[#This Row],[FECHAM]] -> 9831.46 | H31: =Tabela1[ATUAL]-Tabela1[PAGO] -> 472.31 | I31: 0.04804067758 | J31: =(TOTAL/Tabela1[[#This Row],[FECHAM]])-Tabela1[[#This Row],[QTD T]] -> 807.8029185 | K31: =TOTAL/Tabela1[[#This Row],[QTD T]] -> 3804.418606
A32: 2021-04-30 | B32: 1 | C32: 48 | D32: 206.71 | E32: 199.29 | F32: =INDEX(Tabela5[#All],MATCH(Tabela1[[#This Row],[DATA]],RICO!A:A,1),5) -> 9565.92 | G32: =Tabela1[[#This Row],[QTD T]]*Tabela1[[#This Row],[FECHAM]] -> 9922.08 | H32: =Tabela1[ATUAL]-Tabela1[PAGO] -> 356.16 | I32: 0.03589569929 | J32: =(TOTAL/Tabela1[[#This Row],[FECHAM]])-Tabela1[[#This Row],[QTD T]] -> 817.0170505 | K32: =TOTAL/Tabela1[[#This Row],[QTD T]] -> 3725.159885
A33: 2021-05-03 | B33: 1 | C33: 49 | D33: 207.39 | E33: 199.5263265 | F33: =INDEX(Tabela5[#All],MATCH(Tabela1[[#This Row],[DATA]],RICO!A:A,1),5) -> 9776.79 | G33: =Tabela1[[#This Row],[QTD T]]*Tabela1[[#This Row],[FECHAM]] -> 10162.11 | H33: =Tabela1[ATUAL]-Tabela1[PAGO] -> 385.32 | I33: =H33/G33 -> 0.03791732229 | J33: =(TOTAL/Tabela1[[#This Row],[FECHAM]])-Tabela1[[#This Row],[QTD T]] -> 813.1807922 | K33: =TOTAL/Tabela1[[#This Row],[QTD T]] -> 3649.136214
A34: 2021-05-04 | B34: 0 | C34: 49 | D34: 205.38 | E34: =F34/C34 -> 199.5263265 | F34: =INDEX(Tabela5[#All],MATCH(Tabela1[[#This Row],[DATA]],RICO!A:A,1),5) -> 9776.79 | G34: =Tabela1[[#This Row],[QTD T]]*Tabela1[[#This Row],[FECHAM]] -> 10063.62 | H34: =Tabela1[ATUAL]-Tabela1[PAGO] -> 286.83 | I34: 0.02850167236 | J34: =(TOTAL/Tabela1[[#This Row],[FECHAM]])-Tabela1[[#This Row],[QTD T]] -> 821.6187287 | K34: =TOTAL/Tabela1[[#This Row],[QTD T]] -> 3649.136214
A35: 2021-05-05 | B35: 1 | C35: 50 | D35: 208.44 | E35: 199.6998 | F35: =INDEX(Tabela5[#All],MATCH(Tabela1[[#This Row],[DATA]],RICO!A:A,1),5) -> 9984.99 | G35: =Tabela1[[#This Row],[QTD T]]*Tabela1[[#This Row],[FECHAM]] -> 10422 | H35: =Tabela1[ATUAL]-Tabela1[PAGO] -> 437.01 | I35: 0.04193149108 | J35: =(TOTAL/Tabela1[[#This Row],[FECHAM]])-Tabela1[[#This Row],[QTD T]] -> 807.8376247 | K35: =TOTAL/Tabela1[[#This Row],[QTD T]] -> 3576.15349
A36: 2021-05-06 | B36: 0 | C36: 50 | D36: 210.41 | E36: 199.6998 | F36: =INDEX(Tabela5[#All],MATCH(Tabela1[[#This Row],[DATA]],RICO!A:A,1),5) -> 9984.99 | G36: =Tabela1[[#This Row],[QTD T]]*Tabela1[[#This Row],[FECHAM]] -> 10520.5 | H36: =Tabela1[ATUAL]-Tabela1[PAGO] -> 535.51 | I36: 0.05090157312 | J36: =(TOTAL/Tabela1[[#This Row],[FECHAM]])-Tabela1[[#This Row],[QTD T]] -> 799.8059717 | K36: =TOTAL/Tabela1[[#This Row],[QTD T]] -> 3576.15349
A37: 2021-05-07 | B37: 0 | C37: 50 | D37: 213.81 | E37: 199.6998 | F37: =INDEX(Tabela5[#All],MATCH(Tabela1[[#This Row],[DATA]],RICO!A:A,1),5) -> 9984.99 | G37: =Tabela1[[#This Row],[QTD T]]*Tabela1[[#This Row],[FECHAM]] -> 10690.5 | H37: =Tabela1[ATUAL]-Tabela1[PAGO] -> 705.51 | I37: 0.06599410692 | J37: =(TOTAL/Tabela1[[#This Row],[FECHAM]])-Tabela1[[#This Row],[QTD T]] -> 786.2923834 | K37: =TOTAL/Tabela1[[#This Row],[QTD T]] -> 3576.15349
A38: 2021-05-10 | B38: 2 | C38: 52 | D38: 213.55 | E38: 200.2521154 | F38: =INDEX(Tabela5[#All],MATCH(Tabela1[[#This Row],[DATA]],RICO!A:A,1),5) -> 10413.11 | G38: =Tabela1[[#This Row],[QTD T]]*Tabela1[[#This Row],[FECHAM]] -> 11104.6 | H38: =Tabela1[ATUAL]-Tabela1[PAGO] -> 691.49 | I38: 0.06227059057 | J38: =(TOTAL/Tabela1[[#This Row],[FECHAM]])-Tabela1[[#This Row],[QTD T]] -> 785.3105807 | K38: =TOTAL/Tabela1[[#This Row],[QTD T]] -> 3438.609125
A39: 2021-05-11 | B39: 4 | C39: 56 | D39: 216.06 | E39: 201.2228571 | F39: =INDEX(Tabela5[#All],MATCH(Tabela1[[#This Row],[DATA]],RICO!A:A,1),5) -> 11268.48 | G39: =Tabela1[[#This Row],[QTD T]]*Tabela1[[#This Row],[FECHAM]] -> 12099.36 | H39: =Tabela1[ATUAL]-Tabela1[PAGO] -> 830.88 | I39: 0.0686714008 | J39: =(TOTAL/Tabela1[[#This Row],[FECHAM]])-Tabela1[[#This Row],[QTD T]] -> 771.5834236 | K39: =TOTAL/Tabela1[[#This Row],[QTD T]] -> 3192.994187
A40: 2021-05-12 | B40: 0 | C40: 56 | D40: 210.2 | E40: 201.2228571 | F40: =INDEX(Tabela5[#All],MATCH(Tabela1[[#This Row],[DATA]],RICO!A:A,1),5) -> 11268.48 | G40: =Tabela1[[#This Row],[QTD T]]*Tabela1[[#This Row],[FECHAM]] -> 11771.2 | H40: =Tabela1[ATUAL]-Tabela1[PAGO] -> 502.72 | I40: 0.04270762539 | J40: =(TOTAL/Tabela1[[#This Row],[FECHAM]])-Tabela1[[#This Row],[QTD T]] -> 794.6549691 | K40: =TOTAL/Tabela1[[#This Row],[QTD T]] -> 3192.994187
A41: 2021-05-13 | B41: 0 | C41: 56 | D41: 211.21 | E41: 201.2228571 | F41: =INDEX(Tabela5[#All],MATCH(Tabela1[[#This Row],[DATA]],RICO!A:A,1),5) -> 11268.48 | G41: =Tabela1[[#This Row],[QTD T]]*Tabela1[[#This Row],[FECHAM]] -> 11827.76 | H41: =Tabela1[ATUAL]-Tabela1[PAGO] -> 559.28 | I41: 0.04728536933 | J41: =(TOTAL/Tabela1[[#This Row],[FECHAM]])-Tabela1[[#This Row],[QTD T]] -> 790.5871621 | K41: =TOTAL/Tabela1[[#This Row],[QTD T]] -> 3192.994187
A42: 2021-05-14 | B42: 0 | C42: 56 | D42: 212.35 | E42: 201.2228571 | F42: =INDEX(Tabela5[#All],MATCH(Tabela1[[#This Row],[DATA]],RICO!A:A,1),5) -> 11268.48 | G42: =Tabela1[[#This Row],[QTD T]]*Tabela1[[#This Row],[FECHAM]] -> 11891.6 | H42: =Tabela1[ATUAL]-Tabela1[PAGO] -> 623.12 | I42: 0.05240001345 | J42: =(TOTAL/Tabela1[[#This Row],[FECHAM]])-Tabela1[[#This Row],[QTD T]] -> 786.0422628 | K42: =TOTAL/Tabela1[[#This Row],[QTD T]] -> 3192.994187
A43: 2021-05-17 | B43: 0 | C43: 56 | D43: 214.78 | E43: =F43/C43 -> 201.2228571 | F43: =INDEX(Tabela5[#All],MATCH(Tabela1[[#This Row],[DATA]],RICO!A:A,1),5) -> 11268.48 | G43: =Tabela1[[#This Row],[QTD T]]*Tabela1[[#This Row],[FECHAM]] -> 12027.68 | H43: =Tabela1[ATUAL]-Tabela1[PAGO] -> 759.2 | I43: =H43/G43 -> 0.0631210674 | J43: =(TOTAL/Tabela1[[#This Row],[FECHAM]])-Tabela1[[#This Row],[QTD T]] -> 776.5154786 | K43: =TOTAL/Tabela1[[#This Row],[QTD T]] -> 3192.994187
A44: 2021-05-18 | B44: 0 | C44: 56 | D44: 215.17 | E44: 201.2228571 | F44: =INDEX(Tabela5[#All],MATCH(Tabela1[[#This Row],[DATA]],RICO!A:A,1),5) -> 11268.48 | G44: =Tabela1[[#This Row],[QTD T]]*Tabela1[[#This Row],[FECHAM]] -> 12049.52 | H44: =Tabela1[ATUAL]-Tabela1[PAGO] -> 781.04 | I44: 0.06481917952 | J44: =(TOTAL/Tabela1[[#This Row],[FECHAM]])-Tabela1[[#This Row],[QTD T]] -> 775.0065274 | K44: =TOTAL/Tabela1[[#This Row],[QTD T]] -> 3192.994187
A45: 2021-05-19 | B45: 1 | C45: 57 | D45: 213.9 | E45: 201.4408772 | F45: =INDEX(Tabela5[#All],MATCH(Tabela1[[#This Row],[DATA]],RICO!A:A,1),5) -> 11482.13 | G45: =Tabela1[[#This Row],[QTD T]]*Tabela1[[#This Row],[FECHAM]] -> 12192.3 | H45: =Tabela1[ATUAL]-Tabela1[PAGO] -> 710.17 | I45: 0.05824741845 | J45: =(TOTAL/Tabela1[[#This Row],[FECHAM]])-Tabela1[[#This Row],[QTD T]] -> 778.9405072 | K45: =TOTAL/Tabela1[[#This Row],[QTD T]] -> 3136.976746
A46: 2021-05-20 | B46: 0 | C46: 57 | D46: 213.55 | E46: 201.4408772 | F46: =INDEX(Tabela5[#All],MATCH(Tabela1[[#This Row],[DATA]],RICO!A:A,1),5) -> 11482.13 | G46: =Tabela1[[#This Row],[QTD T]]*Tabela1[[#This Row],[FECHAM]] -> 12172.35 | H46: =Tabela1[ATUAL]-Tabela1[PAGO] -> 690.22 | I46: 0.05670392324 | J46: =(TOTAL/Tabela1[[#This Row],[FECHAM]])-Tabela1[[#This Row],[QTD T]] -> 780.3105807 | K46: =TOTAL/Tabela1[[#This Row],[QTD T]] -> 3136.976746
A47: 2021-05-21 | B47: 0 | C47: 57 | D47: 213.02 | E47: 201.4408772 | F47: =INDEX(Tabela5[#All],MATCH(Tabela1[[#This Row],[DATA]],RICO!A:A,1),5) -> 11482.13 | G47: =Tabela1[[#This Row],[QTD T]]*Tabela1[[#This Row],[FECHAM]] -> 12142.14 | H47: =Tabela1[ATUAL]-Tabela1[PAGO] -> 660.01 | I47: 0.05435697496 | J47: =(TOTAL/Tabela1[[#This Row],[FECHAM]])-Tabela1[[#This Row],[QTD T]] -> 782.3938339 | K47: =TOTAL/Tabela1[[#This Row],[QTD T]] -> 3136.976746
A48: 2021-05-24 | B48: 0 | C48: 57 | D48: 215.02 | E48: 201.4408772 | F48: =INDEX(Tabela5[#All],MATCH(Tabela1[[#This Row],[DATA]],RICO!A:A,1),5) -> 11482.13 | G48: =Tabela1[[#This Row],[QTD T]]*Tabela1[[#This Row],[FECHAM]] -> 12256.14 | H48: =Tabela1[ATUAL]-Tabela1[PAGO] -> 774.01 | I48: 0.06315283605 | J48: =(TOTAL/Tabela1[[#This Row],[FECHAM]])-Tabela1[[#This Row],[QTD T]] -> 774.5862455 | K48: =TOTAL/Tabela1[[#This Row],[QTD T]] -> 3136.976746
A49: 2021-05-25 | B49: 3 | C49: 60 | D49: 212.51 | E49: =F49/C49 -> 201.9975 | F49: =INDEX(Tabela5[#All],MATCH(Tabela1[[#This Row],[DATA]],RICO!A:A,1),5) -> 12119.85 | G49: =Tabela1[[#This Row],[QTD T]]*Tabela1[[#This Row],[FECHAM]] -> 12750.6 | H49: =Tabela1[ATUAL]-Tabela1[PAGO] -> 630.75 | I49: =H49/G49 -> 0.04946826032 | J49: =(TOTAL/Tabela1[[#This Row],[FECHAM]])-Tabela1[[#This Row],[QTD T]] -> 781.4082843 | K49: =TOTAL/Tabela1[[#This Row],[QTD T]] -> 2980.127908
A50: 2021-05-26 | B50: 0 | C50: 60 | D50: 215 | E50: =F50/C50 -> 201.9975 | F50: =INDEX(Tabela5[#All],MATCH(Tabela1[[#This Row],[DATA]],RICO!A:A,1),5) -> 12119.85 | G50: =Tabela1[[#This Row],[QTD T]]*Tabela1[[#This Row],[FECHAM]] -> 12900 | H50: =Tabela1[ATUAL]-Tabela1[PAGO] -> 780.15 | I50: 0.06047674419 | J50: =(TOTAL/Tabela1[[#This Row],[FECHAM]])-Tabela1[[#This Row],[QTD T]] -> 771.6636023 | K50: =TOTAL/Tabela1[[#This Row],[QTD T]] -> 2980.127908
A51: 2021-05-27 | B51: 0 | C51: 60 | D51: 215.5 | E51: =F51/C51 -> 201.9975 | F51: =INDEX(Tabela5[#All],MATCH(Tabela1[[#This Row],[DATA]],RICO!A:A,1),5) -> 12119.85 | G51: =Tabela1[[#This Row],[QTD T]]*Tabela1[[#This Row],[FECHAM]] -> 12930 | H51: =Tabela1[ATUAL]-Tabela1[PAGO] -> 810.15 | I51: 0.06265661253 | J51: =(TOTAL/Tabela1[[#This Row],[FECHAM]])-Tabela1[[#This Row],[QTD T]] -> 769.7339884 | K51: =TOTAL/Tabela1[[#This Row],[QTD T]] -> 2980.127908
A52: 2021-05-28 | B52: 0 | C52: 60 | D52: 217.71 | E52: =F52/C52 -> 201.9975 | F52: =INDEX(Tabela5[#All],MATCH(Tabela1[[#This Row],[DATA]],RICO!A:A,1),5) -> 12119.85 | G52: =Tabela1[[#This Row],[QTD T]]*Tabela1[[#This Row],[FECHAM]] -> 13062.6 | H52: =Tabela1[ATUAL]-Tabela1[PAGO] -> 942.75 | I52: 0.07217169629 | J52: =(TOTAL/Tabela1[[#This Row],[FECHAM]])-Tabela1[[#This Row],[QTD T]] -> 761.3112604 | K52: =TOTAL/Tabela1[[#This Row],[QTD T]] -> 2980.127908
A53: 2021-05-31 | B53: 0 | C53: 60 | D53: 219.03 | E53: 201.9975 | F53: =INDEX(Tabela5[#All],MATCH(Tabela1[[#This Row],[DATA]],RICO!A:A,1),5) -> 12119.85 | G53: =Tabela1[[#This Row],[QTD T]]*Tabela1[[#This Row],[FECHAM]] -> 13141.8 | H53: =Tabela1[ATUAL]-Tabela1[PAGO] -> 1021.95 | I53: 0.07776332009 | J53: =(TOTAL/Tabela1[[#This Row],[FECHAM]])-Tabela1[[#This Row],[QTD T]] -> 756.3615692 | K53: =TOTAL/Tabela1[[#This Row],[QTD T]] -> 2980.127908
A54: 2021-06-01 | B54: 0 | C54: 60 | D54: 222.58 | E54: =F54/C54 -> 201.9975 | F54: =INDEX(Tabela5[#All],MATCH(Tabela1[[#This Row],[DATA]],RICO!A:A,1),5) -> 12119.85 | G54: =Tabela1[[#This Row],[QTD T]]*Tabela1[[#This Row],[FECHAM]] -> 13354.8 | H54: =Tabela1[ATUAL]-Tabela1[PAGO] -> 1234.95 | I54: 0.09247236949 | J54: =(TOTAL/Tabela1[[#This Row],[FECHAM]])-Tabela1[[#This Row],[QTD T]] -> 743.341156 | K54: =TOTAL/Tabela1[[#This Row],[QTD T]] -> 2980.127908
A55: 2021-06-02 | B55: 0 | C55: 60 | D55: 225.17 | E55: 201.9975 | F55: =INDEX(Tabela5[#All],MATCH(Tabela1[[#This Row],[DATA]],RICO!A:A,1),5) -> 12119.85 | G55: =Tabela1[[#This Row],[QTD T]]*Tabela1[[#This Row],[FECHAM]] -> 13510.2 | H55: =Tabela1[ATUAL]-Tabela1[PAGO] -> 1390.35 | I55: =H55/G55 -> 0.1029111338 | J55: =(TOTAL/Tabela1[[#This Row],[FECHAM]])-Tabela1[[#This Row],[QTD T]] -> 734.1007883 | K55: =TOTAL/Tabela1[[#This Row],[QTD T]] -> 2980.127908
A56: 2021-06-04 | B56: 0 | C56: 60 | D56: 225.3 | E56: 201.9975 | F56: =INDEX(Tabela5[#All],MATCH(Tabela1[[#This Row],[DATA]],RICO!A:A,1),5) -> 12119.85 | G56: =Tabela1[[#This Row],[QTD T]]*Tabela1[[#This Row],[FECHAM]] -> 13518 | H56: =Tabela1[ATUAL]-Tabela1[PAGO] -> 1398.15 | I56: 0.1034287617 | J56: =(TOTAL/Tabela1[[#This Row],[FECHAM]])-Tabela1[[#This Row],[QTD T]] -> 733.6425854 | K56: =TOTAL/Tabela1[[#This Row],[QTD T]] -> 2980.127908
A57: 2021-06-07 | B57: 2 | C57: 62 | D57: 225.95 | E57: 202.6930645 | F57: =INDEX(Tabela5[#All],MATCH(Tabela1[[#This Row],[DATA]],RICO!A:A,1),5) -> 12566.97 | G57: =Tabela1[[#This Row],[QTD T]]*Tabela1[[#This Row],[FECHAM]] -> 14008.9 | H57: =Tabela1[ATUAL]-Tabela1[PAGO] -> 1441.93 | I57: 0.1029295662 | J57: =(TOTAL/Tabela1[[#This Row],[FECHAM]])-Tabela1[[#This Row],[QTD T]] -> 729.35948 | K57: =TOTAL/Tabela1[[#This Row],[QTD T]] -> 2883.99475
A58: 2021-06-08 | B58: 0 | C58: 62 | D58: 224.21 | E58: 202.6930645 | F58: =INDEX(Tabela5[#All],MATCH(Tabela1[[#This Row],[DATA]],RICO!A:A,1),5) -> 12566.97 | G58: =Tabela1[[#This Row],[QTD T]]*Tabela1[[#This Row],[FECHAM]] -> 13901.02 | H58: =Tabela1[ATUAL]-Tabela1[PAGO] -> 1334.05 | I58: 0.0959677779 | J58: =(TOTAL/Tabela1[[#This Row],[FECHAM]])-Tabela1[[#This Row],[QTD T]] -> 735.5008898 | K58: =TOTAL/Tabela1[[#This Row],[QTD T]] -> 2883.99475
A59: 2021-06-09 | B59: 0 | C59: 62 | D59: 224.95 | E59: 202.6930645 | F59: =INDEX(Tabela5[#All],MATCH(Tabela1[[#This Row],[DATA]],RICO!A:A,1),5) -> 12566.97 | G59: =Tabela1[[#This Row],[QTD T]]*Tabela1[[#This Row],[FECHAM]] -> 13946.9 | H59: =Tabela1[ATUAL]-Tabela1[PAGO] -> 1379.93 | I59: 0.09894170031 | J59: =(TOTAL/Tabela1[[#This Row],[FECHAM]])-Tabela1[[#This Row],[QTD T]] -> 732.877415 | K59: =TOTAL/Tabela1[[#This Row],[QTD T]] -> 2883.99475
A60: 2021-06-10 | B60: 0 | C60: 62 | D60: 224.36 | E60: =F60/C60 -> 202.6930645 | F60: =INDEX(Tabela5[#All],MATCH(Tabela1[[#This Row],[DATA]],RICO!A:A,1),5) -> 12566.97 | G60: =Tabela1[[#This Row],[QTD T]]*Tabela1[[#This Row],[FECHAM]] -> 13910.32 | H60: =Tabela1[ATUAL]-Tabela1[PAGO] -> 1343.35 | I60: 0.09657218526 | J60: =(TOTAL/Tabela1[[#This Row],[FECHAM]])-Tabela1[[#This Row],[QTD T]] -> 734.9677059 | K60: =TOTAL/Tabela1[[#This Row],[QTD T]] -> 2883.99475
A61: 2021-06-11 | B61: 0 | C61: 62 | D61: 225.23 | E61: =F61/C61 -> 202.6930645 | F61: =INDEX(Tabela5[#All],MATCH(Tabela1[[#This Row],[DATA]],RICO!A:A,1),5) -> 12566.97 | G61: =Tabela1[[#This Row],[QTD T]]*Tabela1[[#This Row],[FECHAM]] -> 13964.26 | H61: =Tabela1[ATUAL]-Tabela1[PAGO] -> 1397.29 | I61: =H61/G61 -> 0.1000618722 | J61: =(TOTAL/Tabela1[[#This Row],[FECHAM]])-Tabela1[[#This Row],[QTD T]] -> 731.8892443 | K61: =TOTAL/Tabela1[[#This Row],[QTD T]] -> 2883.99475
A62: 2021-06-14 | B62: 0 | C62: 62 | D62: 227 | E62: =F62/C62 -> 202.6930645 | F62: =INDEX(Tabela5[#All],MATCH(Tabela1[[#This Row],[DATA]],RICO!A:A,1),5) -> 12566.97 | G62: =Tabela1[[#This Row],[QTD T]]*Tabela1[[#This Row],[FECHAM]] -> 14074 | H62: =Tabela1[ATUAL]-Tabela1[PAGO] -> 1507.03 | I62: =H62/G62 -> 0.1070790109 | J62: =(TOTAL/Tabela1[[#This Row],[FECHAM]])-Tabela1[[#This Row],[QTD T]] -> 725.6990066 | K62: =TOTAL/Tabela1[[#This Row],[QTD T]] -> 2883.99475
A63: 2021-06-15 | B63: 0 | C63: 62 | D63: 225.05 | E63: =F63/C63 -> 202.6930645 | F63: =INDEX(Tabela5[#All],MATCH(Tabela1[[#This Row],[DATA]],RICO!A:A,1),5) -> 12566.97 | G63: =Tabela1[[#This Row],[QTD T]]*Tabela1[[#This Row],[FECHAM]] -> 13953.1 | H63: =Tabela1[ATUAL]-Tabela1[PAGO] -> 1386.13 | I63: =H63/G63 -> 0.09934208169 | J63: =(TOTAL/Tabela1[[#This Row],[FECHAM]])-Tabela1[[#This Row],[QTD T]] -> 732.5242146 | K63: =TOTAL/Tabela1[[#This Row],[QTD T]] -> 2883.99475
A64: 2021-06-15 | B64: 0 | C64: 62 | D64: 225.05 | E64: =F64/C64 ->  | F64: =INDEX(Tabela5[#All],MATCH(Tabela1[[#This Row],[DATA]],RICO!A:A,1),5) ->  | G64: =Tabela1[[#This Row],[QTD T]]*Tabela1[[#This Row],[FECHAM]] ->  | H64: =Tabela1[ATUAL]-Tabela1[PAGO] ->  | I64: =H64/G64 ->  | J64: =(TOTAL/Tabela1[[#This Row],[FECHAM]])-Tabela1[[#This Row],[QTD T]] ->  | K64: =TOTAL/Tabela1[[#This Row],[QTD T]] -> 
A65: 2021-06-15 | B65: 0 | C65: 62 | D65: 225.05 | E65: =F65/C65 ->  | F65: =INDEX(Tabela5[#All],MATCH(Tabela1[[#This Row],[DATA]],RICO!A:A,1),5) ->  | G65: =Tabela1[[#This Row],[QTD T]]*Tabela1[[#This Row],[FECHAM]] ->  | H65: =Tabela1[ATUAL]-Tabela1[PAGO] ->  | I65: =H65/G65 ->  | J65: =(TOTAL/Tabela1[[#This Row],[FECHAM]])-Tabela1[[#This Row],[QTD T]] ->  | K65: =TOTAL/Tabela1[[#This Row],[QTD T]] -> 

Sheet PAINEL
A1: PIBB11
A3: NO DIA | B3: =((FECHAMENTO/FECHAMENTOANTERIOR)-1)*100 -> 0 | C3: % | E3: MAIOR | F3: MENOR | G3: MAIOR | H3: ACIMA | I3: ABAIXO | K3: =I15+B6 -> 178807.6745
A4: DATA | B4: =TODAY() -> 2021-06-15 | E4: FECHAMENTO | F4: FECHAMENTO | G4: PREJUÍZO | H4: P. MÉDIO | I4: P. MÉDIO | K4: =ATUAL -> 13953.1
A5: PAGO | B5: =Tabela6[PAGO] -> 12566.97 | E5: =LARGE(Tabela1[FECHAM],1) -> 227 | F5: =SMALL(Tabela1[FECHAM],1) -> 192.85 | G5: =SMALL(Tabela1[%],1) -> -0.02984703137 | H5: =COUNTIF(Tabela1[FECHAM],">=" & PRECOMEDIO) -> 50 | I5: =COUNTIF(Tabela1[FECHAM],"<" & PRECOMEDIO) -> 12
A6: ATUAL | B6: =FECHAMENTO*QUANTIDADE -> 13953.1
A7: FECHAMENTO | B7: =INDEX(DIAS!D:D,COUNTA(DIAS!D:D),1) -> 225.05 | E7: MAIOR | F7: MAIOR | G7: FALTAM | H7: MAIOR | I7: MENOR
A8: DATA ANTERIOR | B8: =INDEX(Tabela1[[#All],[DATA]],MATCH(B4,Tabela1[[#All],[DATA]],1)-1,1) -> 2021-06-14 | E8: LUCRO | F8: LUCRO | G8: =TOTALCOTAS-QUANTIDADE -> 732.5242146 | H8: P. MÉDIO | I8: P. MÉDIO
A9: FECHAMENTO ANTERIOR | B9: =INDEX(DIAS!D:D,COUNTA(DIAS!D:D)-1,1) -> 225.05 | E9: =LARGE(Tabela1[%],1) -> 0.1070790109 | F9: =LARGE(Tabela1[RESULT],1) -> 1507.03 | G9: COTAS | H9: =LARGE(Tabela1[PREÇO MÉDIO],1) -> 202.6930645 | I9: =SMALL(Tabela1[PREÇO MÉDIO],1) -> 198.5675
A10: RENDIMENTO | B10: =INDEX(DIAS!I:I,COUNT(DIAS!I:I)+1,1)*100 -> 9.934208169 | C10: %
A11: PREÇO MÉDIO | B11: =Tabela6[PREÇO MÉDIO] -> 202.6930645 | E11: META | F11: DIAS | G11: JUROS | H11: JUROS/DIA | I11: DIFERENÇA
A12: QUANTIDADE | B12: =SUM(DIAS!B:B) -> 62 | E12: =JUROS+PAGO+LÍQUIDO+IR -> 178807.6745 | F12: =_xlfn.DAYS(TODAY(),"17/3/21") -> 90 | G12: =MESES*FECHAMENTO -> 675.15 | H12: =G12/F12 -> 7.501666667 | I12: =H15-B7 -> 2658.94475
A13: RESULTADO | B13: =Tabela6[RESULTADO] -> 1386.13
A14: RESULTADO POR COTA | B14: =B13/B12 -> 22.35693548 | E14: PREVISÃO | F14: COTAS/PREGÃO | G14: LÍQUIDO | H14: VENDA | I14: FALTAM
A15: IMPOSTO DE RENDA | B15: =RESULTADO*15/100 -> 207.9195 | E15: =2021+(FALTAMCOTAS/11/12) -> 2026.549426 | F15: =QUANTIDADE/(H5+I5) -> 1 | G15: =COMUM+DAYTRADE -> 165357.635 | H15: =TOTAL/QUANTIDADE -> 2883.99475 | I15: =TOTAL-ATUAL -> 164854.5745
A16: IR ANOS ANTERIORES | B16: =COMUM*15/100 -> 6010.6695
A17: IR A PAGAR | B17: =IR-IRANTERIOR -> -5802.75 | E17: MESES | F17: COTAS | G17: ALVO | H17: C | I17: D
A18: COMPRAR | B18: 10 | E18: =DIAS/30 -> 3 | F18: =TOTAL/FECHAMENTO -> 794.5242146 | G18: =(VENDA/FECHAMENTO) -> 12.81490669 | H18: =Tabela13[[#Totals],[RES NEG MÊS ANT]] -> 40071.13 | I18: =Tabela135[[#Totals],[RES NEG MÊS ANT]] -> 125286.505
A19: VAI LEVAR PM PARA | B19: =((B18*FECHAMENTO)+PAGO)/(QUANTIDADE+B18) -> 205.7981944
A20: VALOR MÉDIO POR PREGÃO | B20: =PAGO/(H5+I5) -> 202.6930645 | E20: ATINGIDO | F20: FALTAM | G20: PREGÕES | H20: VARIAÇÃO | I20: VAR %
A21: MÉDIA MÓVEL | B21: =MM("DIAS",4,2, 54) -> 213.1418519 | E21: =RESULTADO*100/(TOTAL-PAGO)/100 -> 0.008338090266 | F21: =100%-E21 -> 0.9916619097 | G21: =SUM(H5:I5) -> 62
